Cogmind - Beta 17 @@@ ROGUE MODE // 2026.08.22 @ 12:33:18 Player: NeoBioHazard Result: Destroyed by Y-45 Defender with Beam Rifle Performance ------------- Evolutions (1) 500 Regions Visited (2) 400 Robots Destroyed (11) 55 Value Destroyed (223) 223 Prototype IDs (0) 0 Alien Tech Used (0) 0 Bonus (0) 0 TOTAL SCORE: 1178 Bonus ------- None Cogmind --------- Core Integrity 0/400 Matter 270/300 Energy 14/250 System Corruption 0% Temperature Cool (37) Movement Core (300) Ox5 Location -9/Materials Parts ------- > --- POWER (1) -------- Ion Engine > --- PROPULSION (4) --- (None) > --- UTILITY (2) ------ Small Storage Unit Signal Interpreter > --- WEAPON (2) ------- EM Shotgun EM Shotgun > --- INVENTORY (8) ---- Sensor Array Terrain Scan Processor Assault Rifle Assault Rifle Hammer Hammer Hammer Peak State ------------ > --- POWER ------------ Ion Engine > --- PROPULSION ------- Wheel Compact Wheel Compact Wheel > --- UTILITY ---------- Small Storage Unit Signal Interpreter > --- WEAPON ----------- Hammer Hammer > --- INVENTORY -------- Ion Engine Sensor Array Assault Rifle Assault Rifle Hammer Hammer Hammer [Rating: 8] Favorites ----------- Power Ion Engine Engine Ion Engine Propulsion Wheel Wheel Wheel Utility Small Storage Unit Storage Small Storage Unit Processor Signal Interpreter Weapon Hammer Energy Gun EM Shotgun Impact Weapon Hammer Build | -11 -10 -9 ------- Run | Yrd Mat Mat Slots Evolved 2 | . . 2 Power . | . . . Propulsion 2 | . . 2 Utility . | . . . Weapon . | . . . Parts Attached 13 | 4 4 5 Power 3 | 1 . 2 Engine 3 | 1 . 2 Core . | . . . Reactor . | . . . Propulsion 4 | 2 1 1 Treads . | . . . Leg . | . . . Wheel 4 | 2 1 1 Hover . | . . . Flight . | . . . Utility 2 | 1 1 . Device . | . . . Storage 1 | 1 . . Processor 1 | . 1 . Hackware . | . . . Protection . | . . . Artifact . | . . . Weapon 4 | . 2 2 Energy Gun 2 | . . 2 Energy Cannon . | . . . Ballistic Gun . | . . . Ballistic Cannon . | . . . Launcher . | . . . Special Weapon . | . . . Impact Weapon 2 | . 2 . Slashing Weapon . | . . . Piercing Weapon . | . . . Special Melee Weapon . | . . . Unidentified Prototypes . | . . . Parts Lost 5 | . . 5 Power 2 | . . 2 Propulsion 3 | . . 3 Utility . | . . . Weapon . | . . . Highest Loss Streak 3 | . . 3 To Critical Strikes . | . . . Average Backups 7 | 2 7 7 Power . | . 1 1 Propulsion . | . . . Utility 1 | . . 1 Weapon 4 | 1 4 5 Tool/Special . | . . . Unused Backups 10 | . 3 7 Power . | . . . Propulsion . | . . . Utility 2 | . . 2 Weapon 8 | . 3 5 Tool/Special . | . . . Average Slot Usage (%) 79 | . 91 62 Engine 10 | . 14 5 Wheel 21 | . 28 13 Storage 12 | . 14 11 Processor 10 | . 10 11 Impact Weapon 23 | . 24 21 Peak Build Rating 8 | 4 7 8 Average Rating 5 | 2 6 5 On Entrance 3 | . 4 7 Avg Prop Armor Cover (%) . | . . . Naked Turns . | . . . Heaviest Build 14 | 10 14 14 Greatest Support 42 | 20 26 42 Greatest Overweight (x) 4 | . . 4 Average Overweight (x) . | . . . Largest Inventory Capacity 8 | 8 8 8 Average Capacity 7 | 6 8 8 Most Carried 8 | 4 8 8 Average Carried 7 | 2 7 7 Final Capacity 8 | 8 8 8 Final Carried 8 | 4 8 7 Class Distribution -------------------- 100% | Mutant Dominant Class ---------------- Mutant | -10/Materials Mutant | -9/Materials Resources | -11 -10 -9 ----------- Run | Yrd Mat Mat Matter Collected 290 | 240 40 10 Remotely . | . . . Salvage Created 302 | . 175 127 Parts 8 | . 6 2 Haulers Intercepted 1 | . 1 . Recyclers Shooed . | . . . Parts Field Recycled . | . . . Retrieved Matter . | . . . Parts Self-Destructed . | . . . Prevented . | . . . Parts Restored . | . . . Kills | -11 -10 -9 ------- Run | Yrd Mat Mat Combat Hostiles Destroyed 9 | . 5 4 Melee 3 | . 2 1 Guns 2 | . . 2 Classes Destroyed 5 | . 3 2 Worker 1 | . . 1 Hauler 1 | . 1 . Swarmer 5 | . 3 2 Grunt 3 | . 2 1 Sentry 1 | . . 1 Best Kill Streak 3 | . 3 2 Combat Bots Only 3 | . 3 2 Max Kills in Single Turn 1 | . 1 1 Gunslinging . | . . . Exploded . | . . . Melee 1 | . 1 1 Uniques/NPCs Destroyed . | . . . Combat | -11 -10 -9 -------- Run | Yrd Mat Mat Hostile Shots Fired 122 | . 28 94 Missed 30 | . 6 24 Hits 92 | . 22 70 Projectile 92 | . 22 70 Critical Strikes 2 | . . 2 Damage Taken 981 | . 209 772 Core 466 | . 63 403 Absorbed by Shields . | . . . Core Remaining (%) 87 | 100 74 . Volleys Fired 2 | . . 2 Largest 2 | . . 2 Hottest 90 | . . 90 Shots Fired 4 | . . 4 Gun 4 | . . 4 Cannon . | . . . Launcher . | . . . Special . | . . . Kinetic . | . . . Thermal . | . . . Explosive . | . . . Electromagnetic 4 | . . 4 Robot Hit Streak 3 | . . 3 Robot Miss Streak 2 | . . 2 Penetration Max . | . . . Secondary Targets 1 | . . 1 Max Gunslinging Chain 1 | . . 1 Shots Hit Robots 36 | . 14 22 Core Hits 8 | . 3 5 Critical Kills 1 | . . 1 Critical Parts Destroyed 2 | . 1 1 Critical Strikes 3 | . 1 2 Smash 3 | . 1 2 Melee Attacks 43 | . 19 24 Impact 43 | . 19 24 Slashing . | . . . Piercing . | . . . Sneak Attacks 2 | . 1 1 Combat Hostiles . | . . . Follow-up Attacks 2 | . . 2 Damage Inflicted 910 | . 464 446 Guns 49 | . . 49 Cannons . | . . . Explosions . | . . . Melee 861 | . 464 397 Ramming . | . . . Kinetic . | . . . Thermal . | . . . Explosive . | . . . Electromagnetic 49 | . . 49 Impact 861 | . 464 397 Slashing . | . . . Piercing . | . . . Highest Corruption . | . . . Average Corruption . | . . . Corruption Purged . | . . . Corruption Blocked . | . . . Overload Shots . | . . . Overflow Damage 120 | . 71 49 Projectiles . | . . . Explosions . | . . . Melee 120 | . 71 49 Knockbacks 1 | . . 1 Impact 1 | . . 1 Kinetic . | . . . Secondary . | . . . Self-Inflicted Damage . | . . . Shots . | . . . Rammed . | . . . Targets Rammed . | . . . Kicked . | . . . Crushed . | . . . Highest Temperature 28 | . . 28 Average Temperature 14 | . . 14 Received Heat Transfer 207 | . 48 159 Siege Activations . | . . . Martial Activations . | . . . Shielding Activations . | . . . Robots Disrupted . | . . . Combat Hostiles . | . . . Robots Corrupted 5 | . 3 2 Combat Hostiles 4 | . 3 1 Parts Fried 2 | . 2 . Impact Corruptions 7 | . 4 3 Robots Melted . | . . . Combat Hostiles . | . . . Parts Melted . | . . . Heat Transferred . | . . . Parts Sabotaged . | . . . Parts Stolen . | . . . Parts Stripped . | . . . Power Chain Reactions . | . . . Alert | -11 -10 -9 ------- Run | Yrd Mat Mat Maximum Alert Level . | . . . Low Security (%) 100 | 100 100 100 Level 1 . | . . . Level 2 . | . . . Level 3 . | . . . Level 4 . | . . . Level 5 . | . . . High Security . | . . . Max Security . | . . . Peak Influence 75 | . 75 40 Initial 26 | . . 26 Average 15 | . 20 11 Influence Increases 297 | . 169 128 Destroy 0b10 Robot/C 180 | . 100 80 Destroy 0b10 Robot/NC 10 | . 5 5 Destroy Leader 42 | . 22 20 Successful Hack 20 | . 12 8 Disable Machine 15 | . 15 . Lose Combat Pursuer 30 | . 15 15 Influence Decreases 257 | . 107 150 Entered New Map 36 | . . 36 Time Decay 195 | . 107 88 Lost Part 21 | . . 21 Purge Threat 5 | . . 5 Squads Dispatched 1 | . . 1 Investigation . | . . . Extermination . | . . . Reinforcement 1 | . . 1 Assault . | . . . Garrison . | . . . Intercept . | . . . Searches Triggered . | . . . Construction Impeded . | . . . Haulers Reinforced . | . . . Active Scanning Responses . | . . . Cargo Convoy Interrupts . | . . . Stealth | -11 -10 -9 --------- Run | Yrd Mat Mat Distress Signals 1 | . 1 . Communications Jammed . | . . . Distress Signals . | . . . Times Spotted 16 | . 8 8 Peak Tracking Total 5 | . 4 5 Tactical Retreats 2 | . 1 1 Traps | -11 -10 -9 ------- Run | Yrd Mat Mat Traps Triggered . | . . . Indirectly . | . . . Trap Hack Attempts . | . . . Triggered . | . . . Disarmed . | . . . Reprogrammed . | . . . Reused . | . . . Traps Extracted . | . . . Installed . | . . . Triggered . | . . . Machines | -11 -10 -9 ---------- Run | Yrd Mat Mat Machines Disabled 1 | . 1 . Max in Single Turn 1 | . 1 . Machines Repaired . | . . . Machines Dismantled . | . . . Machines Sabotaged . | . . . Overloaded Fab Kills . | . . . Hacking | -11 -10 -9 --------- Run | Yrd Mat Mat Machines Accessed 3 | . 2 1 Terminals 3 | . 2 1 Fabricators . | . . . Repair Stations . | . . . Recycling Units . | . . . Scanalyzers . | . . . Garrison Access . | . . . Total Hacks 11 | . 4 7 Successful 7 | . 3 4 Failed 4 | . 1 3 Catastrophic 1 | . . 1 Database Lockouts . | . . . Manual 10 | . 3 7 Terminals 11 | . 4 7 Fabricators . | . . . Repair Stations . | . . . Recycling Units . | . . . Scanalyzers . | . . . Garrison Access . | . . . Terminal Hacks 7 | . 3 4 Unreport Threat 2 | . . 2 Locate Traps 2 | . 1 1 Zone Layout 3 | . 2 1 Fabricator Hacks . | . . . Repair Station Hacks . | . . . Recycling Unit Hacks . | . . . Scanalyzer . | . . . Garrison Access Hacks . | . . . Unauthorized Hacks . | . . . Terminals . | . . . Fabricators . | . . . Repair Stations . | . . . Recycling Units . | . . . Scanalyzers . | . . . Garrison Access . | . . . Data Cores Recovered . | . . . Used . | . . . Hacking Detections 3 | . 2 1 Full Trace Events . | . . . Feedback Events . | . . . Feedback Blocked . | . . . Robot Schematics Acquired . | . . . Robots Built . | . . . Authchips . | . . . Time . | . . . Total Robot Build Rating . | . . . Part Schematics Acquired . | . . . Parts Built . | . . . Authchips . | . . . Time . | . . . Total Part Build Rating . | . . . Part Studies Acquired . | . . . Parts Repaired . | . . . Time . | . . . Parts Recycled . | . . . Recycled Matter . | . . . Retrieved Matter . | . . . Retrieved Components . | . . . Parts Scanalyzed . | . . . Part Schematics Acquired . | . . . Parts Damaged . | . . . Bothacking | -11 -10 -9 ------------ Run | Yrd Mat Mat Used RIF Installer . | . . . Robots Hacked . | . . . Non-combat . | . . . Combat . | . . . Robot Hacks Applied . | . . . Relay Couplers Released . | . . . Fabnet Peak Effective % . | . . . Robots Rewired . | . . . Allies Hacked . | . . . Hacks Repelled . | . . . Allies | -11 -10 -9 -------- Run | Yrd Mat Mat Total Allies . | . . . Largest Group . | . . . Highest-Rated Group . | . . . Highest-Rated Ally . | . . . Total Orders . | . . . Ally Attacks . | . . . Total Damage . | . . . Kills . | . . . Allies Corrupted . | . . . Allies Melted . | . . . Intel | -11 -10 -9 ------- Run | Yrd Mat Mat Active Infowar (turns) . | . . . Robot Analysis Total . | . . . Derelict Logs Recovered . | . . . Drone Launches . | . . . Drone Recoveries . | . . . Exploration | -11 -10 -9 ------------- Run | Yrd Mat Mat Turns Passed 668 | 40 353 275 Spaces Moved 557 | 39 327 191 Core 20 | 2 . 18 Treads . | . . . Legs . | . . . Wheels 537 | 37 327 173 Hover . | . . . Flight . | . . . Fastest Speed 50 | 50 80 93 Average Speed 92 | 78 85 105 Slowest Speed 250 | 80 90 250 Overloaded Moves . | . . . Propulsion Burnouts . | . . . Robots Hopped . | . . . Potential Cave-ins . | . . . Cave-ins Triggered . | . . . Exploration Rate (%) 24 | 3 48 22 Regions Visited 2 Branch Regions . Pre-discovered Areas . | . . . Known Exits Taken 1 | . 1 . Unknown Exits Taken 1 | 1 . . Scrap Searched . | . . . Spaces Dug . | . . . Terrain Destroyed . | . . . Melee . | . . . Projectile . | . . . AOE . | . . . Terrain Rammed . | . . . Walls Destroyed . | . . . Machines Disabled . | . . . Actions | -11 -10 -9 --------- Run | Yrd Mat Mat Total 634 | 46 367 221 Wait 7 | . 7 . Move 555 | 38 326 191 Hop . | . . . Pick Up 12 | 4 7 1 Fast Attach 8 | 4 3 1 Attach 2 | . . 2 Detach . | . . . Swap 3 | . 1 2 Drop 4 | . 4 . Fire 2 | . . 2 Melee 41 | . 19 22 Ram . | . . . Kick . | . . . Crush . | . . . Escape Stasis . | . . . Rewire . | . . . Trap . | . . . Miscellaneous . | . . . Route ------- -11/Scrapyard -10/Materials (discovered 2 exits: *Mat x2) -9/Materials History --------- Turn | Location | Event 13 | -11/Scrapyard | Discovered new exit (range 16) 41 | -11/Scrapyard | Entered Materials 238 | -10/Materials | Discovered new exit (range 15) 314 | -10/Materials | Build established: Mutant 391 | -10/Materials | Discovered new exit (range 3) 393 | -10/Materials | Identified exit to Materials 394 | -10/Materials | Entered another Materials area 394 | -9/Materials | Evolved 2 slots: Propulsion x2 467 | -9/Materials | Lost 3 parts (1p2n) 632 | -9/Materials | Core integrity fell below 50% 653 | -9/Materials | Core integrity fell below 20% 669 | -9/Materials | Destroyed by Y-45 Defender with Beam Rifle Last Messages --------------- >>Alert(Purge) Purged threat record, alert level lowered. >>Alert(Purge) No threats on record. 00588_ K-01 Serf collects debris. 00597_ T-07 Excavator is excavating. 00598_ K-01 Serf cleans the Recycling Unit. 00616_ Sneak attack on K-01 Serf. 00616_ Destroyed Wheel. 00616_ K-01 Serf system corrupted by crushing effect. 00616_ K-01 Serf knocked back. 00617_ K-01 Serf system terminally corrupted. 00620_ Acquired 10 matter. 00630_ Com. Wheel destroyed. 00637_ Ion Engine destroyed. 00650_ S-10 Pest destroyed. 00659_ Acquired EM Shotgun. 00663_ Critical hit (Burn: +37). 00665_ S-10 Pest destroyed. 00668_ Switching to secondary target: Y-45 Defender. Map ----- +----------------------------------------------------+ | ?????????????????????????????????????????????????? | | ?????????????????????????????????????????????????? | | ?????????????????????????????????????????????????? | | ?????????????????????????????????????????????????? | | ?????????????????????????????????????????????????? | | ?????????????????????????????????????????????????? | | ?????????????????????????????????????????????????? | | ?????????????????????????????????????????????????? | | ?????????????????????????????????????????????????? | | ?????????????????????????????????????????????????? | | ?????????????????????????????????????????????????? | | ?????????????????????????????????????????????????? | | ?????????????????????????????????????????????????? | | ?????????????????????????????????????????????????? | | ?????????????????????????????????????????????????? | | ?????????????????????????????????????????????????? | | ?????????????????????????????????????????????????? | | ?????????????????????????????????????????????????? | | ?????????????????????##+##???????????????????????? | | ?????????????????????+ #???????????????????????? | | ?????????????????????# #???????????????????????? | | ###???#??????????????+ #???????????????????????? | | #??????????????# #???????????????????????? | | """ #??????????????# ######??????????????????? | | """ #??????????????# [[ #??????????????????? | | """ #??????????????# @/ #??????????????????? | | #??????????????# +??????????????????? | | ! #??????????????# #??????????????????? | | ?????########### ## [ ????????????? | | ???????# % !![ #???????????? | | #+########## % ![ Y #???????????? | | % Y ![ #???????????? | | ################+#########+## ???????????? | | " # #??????????? ??????????# ###??????????? | | " ?????????# #????????? #????????????? | | # ????????# "S #?????????? #????????????? | | # ???????# """ #???????????^#????????????? | | #? ?????# "" #?????????????????????????? | | #?? ????# #?????????????????????????? | | #???# #????########?????????????????????????? | | #????####?????????????????????????????????????? | | #?????????????????????????????????????????????? | | #?????????????????????????????????????????????? | | #?????????????????????????????????????????????? | | #?????????????????????????????????????????????? | | ####?????????????????????????????????????????????? | | ?????????????????????????????????????????????????? | | ?????????????????????????????????????????????????? | | ?????????????????????????????????????????????????? | | ?????????????????????????????????????????????????? | +----------------------------------------------------+ Best States ------------- Heat Dissipation 28 Energy Generation 10 Energy Capacity 250 Matter Stores 300 Matter Capacity 300 Sight Range 16 Terrain Scan Density 10 Evasion (%) 44 Item Schematics ----------------- None Robot Schematics ------------------ None Fabricated ------------ Nothing Repaired ---------- Nothing Studied --------- None Alien Tech Used ----------------- None Achievements -------------- None Challenges ------------ None Game ------ Seed ScanCargoDetonator Manual? 0 Play Time 00:06:41 Cumulative 265.3 hours Start 2026.08.22 @ 12:28:23 End 2026.08.22 @ 12:33:18 Sessions 1 Manual Loads 0 Difficulty Rogue Special Mode None Game No. 464 Rogue 301 Adventurer 15 Explorer 148 Win Type - Total 30 Types 29/0/0/1/0/0/0/0/0/0 Lore% 65 Gallery% 65 Achievement% 58 Wizard Run 0 Options --------- Layout 0 ASCII 0 Keyboard 1 Movement Numpad Keybinds 0 Fullscreen 2 Font 18/SmallcapsGlow Map View 76x50 Zoom Use 0% Tactical HUD 1 Map Filters NONE Filters NONE Steam 1 RUN: fee2ab4c-c5c8-4ffe-a831-e52e9662f13f